bitfinex-derivatives/quotes_BTCF0:USTF0_20250506
["timestamp","ask_amount","ask_price","bid_price","bid_amount"]
[1746567350589,0.001,94578.0,94577.0,1.24291866]
[1746567355999,0.001,94578.0,94577.0,1.23291866]
[1746567363907,0.001,94578.0,94577.0,0.51131866]
[1746567364114,0.001,94578.0,94577.0,1.23291866]
[1746567365004,0.001,94578.0,94577.0,0.51131866]
[1746567365207,0.001,94578.0,94577.0,1.23291866]
[1746567371409,0.001,94578.0,94577.0,0.51131866]
[1746567371599,0.001,94578.0,94577.0,1.23291866]
[1746567384810,0.001,94578.0,94577.0,1.44865364]
[1746567387817,0.106732,94578.0,94577.0,0.88060026]
[1746567388119,0.106732,94578.0,94577.0,0.51980026]
[1746567388120,0.8890482,94578.0,94577.0,0.51980026]
[1746567388412,0.2114896,94572.0,94571.0,0.26848863]
[1746567388612,0.2115053,94565.0,94564.0,0.27703377]
[1746567388924,0.68016824,94565.0,94564.0,0.27703377]
[1746567389222,1.10816824,94565.0,94564.0,0.27703377]
[1746567391410,0.85816824,94565.0,94564.0,0.27703377]
[1746567391618,0.85716824,94565.0,94564.0,0.27703377]
[1746567391816,0.90036824,94565.0,94564.0,0.27703377]
[1746567392013,0.97896824,94565.0,94564.0,0.27703377]
[1746567392927,0.2115164,94560.0,94559.0,0.2115187]
[1746567393224,0.2115276,94555.0,94554.0,0.00810086]
[1746567393519,0.2115366,94551.0,94550.0,0.2115383]
[1746567393722,0.2901366,94551.0,94550.0,0.2115383]
[1746567393921,0.2901366,94551.0,94550.0,0.37112886]
[1746567394313,0.2901366,94551.0,94550.0,0.15959056]
[1746567394614,0.2115388,94550.0,94549.0,0.37069889]
[1746567394820,0.2713388,94550.0,94549.0,0.15915879]
[1746567395019,0.3771028,94550.0,94549.0,0.37069989]
[1746567395220,0.3771028,94550.0,94549.0,0.2115411]
[1746567395425,0.3771028,94550.0,94549.0,0.37048797]
[1746567396622,0.3771028,94550.0,94549.0,0.15894687]
[1746567396922,0.3791028,94550.0,94549.0,0.15894687]
[1746567397123,0.2115411,94549.0,94548.0,0.00807152]
[1746567397322,0.2115478,94546.0,94545.0,0.0332]
[1746567397623,0.2115478,94546.0,94545.0,0.40398154]
[1746567397809,0.2115478,94546.0,94545.0,0.43678154]
[1746567398527,0.2115478,94546.0,94545.0,0.40398154]
[1746567398823,0.2115478,94546.0,94545.0,0.19243154]
[1746567399726,0.2125478,94546.0,94545.0,0.19243154]
[1746567400023,0.2125478,94546.0,94545.0,0.22353154]
[1746567400419,0.2125478,94546.0,94545.0,0.23127778]
[1746567400626,0.2145478,94546.0,94545.0,0.23127778]
[1746567404122,0.2145478,94546.0,94545.0,0.07204624]
[1746567409732,0.2933878,94546.0,94545.0,0.07204624]
[1746567426747,0.2145478,94546.0,94545.0,0.28351624]
[1746567426956,0.0797511,94552.0,94551.0,0.2115366]
[1746567427248,0.05756776,94558.0,94557.0,0.4229932]
[1746567427456,0.05756776,94558.0,94557.0,0.5729932]
[1746567427649,0.05756776,94558.0,94557.0,0.98136389]
[1746567427849,0.05756776,94558.0,94557.0,0.73136389]
[1746567428752,0.00766776,94558.0,94557.0,0.83711989]
[1746567428950,0.00211494,94565.0,94564.0,0.2115075]
[1746567429157,0.00211494,94565.0,94564.0,0.8626175]
[1746567429350,0.00211494,94565.0,94564.0,1.02217233]
[1746567430557,0.00211494,94565.0,94564.0,1.05467233]
[1746567431257,0.6972,94589.0,94581.0,0.2114695]
[1746567431560,0.0794,94583.0,94581.0,0.4229395]
[1746567431769,0.0015,94590.0,94581.0,0.58189811]
[1746567432053,0.0794,94587.0,94581.0,0.58189811]
[1746567432257,0.0794,94587.0,94581.0,0.64589811]
[1746567432753,0.3460783,94582.0,94581.0,0.64589811]
[1746567432959,0.3480783,94582.0,94581.0,0.64589811]
[1746567433155,0.2134672,94582.0,94581.0,0.64589811]
[1746567433550,0.002,94582.0,94581.0,0.64589811]
[1746567433757,0.002,94582.0,94581.0,0.65673229]
[1746567434562,0.2134672,94582.0,94581.0,0.65673229]
[1746567434951,0.2114672,94582.0,94581.0,0.65673229]
[1746567435153,0.2124672,94582.0,94581.0,0.65673229]
[1746567437161,0.2124672,94582.0,94581.0,0.64589811]
[1746567439060,0.2124672,94582.0,94581.0,0.6566298]
[1746567439752,0.2124672,94582.0,94581.0,0.64589811]
[1746567440258,0.2124672,94582.0,94581.0,0.65635001]
[1746567442054,0.0015,94590.0,94589.0,0.2114516]
[1746567442256,0.0657,94590.0,94589.0,0.2114516]
[1746567442466,0.3300141,94590.0,94589.0,0.2438516]
[1746567442655,0.3300141,94590.0,94589.0,0.2754516]
[1746567444464,0.3300141,94590.0,94589.0,0.064]
[1746567445258,0.3320141,94590.0,94589.0,0.064]
[1746567450662,0.3320141,94590.0,94589.0,0.0316]
[1746567452558,0.3320141,94590.0,94589.0,0.6135816]
[1746567453064,0.3320141,94590.0,94589.0,0.40213]
[1746567453457,0.3320141,94590.0,94589.0,0.43243]
[1746567459858,0.3320141,94590.0,94589.0,0.6438816]
[1746567466669,0.2678141,94590.0,94589.0,0.6438816]
[1746567467866,0.0035,94590.0,94589.0,0.6438816]
[1746567468269,0.2149494,94590.0,94589.0,0.6438816]
[1746567470158,0.0035,94590.0,94589.0,0.6438816]
[1746567470365,0.0035,94590.0,94589.0,0.6538816]
[1746567470663,0.0035,94590.0,94589.0,0.6438816]
[1746567471867,0.0035,94590.0,94589.0,0.6538816]
[1746567472273,0.0035,94590.0,94589.0,0.6438816]
[1746567474675,0.0035,94590.0,94589.0,0.6538816]
[1746567475777,0.0035,94590.0,94589.0,1.0146816]
[1746567477080,0.0035,94590.0,94589.0,1.0046816]
[1746567486286,0.0035,94590.0,94589.0,1.1846816]
[1746567491989,0.0035,94590.0,94589.0,1.3463028]
[1746567497680,0.0642,94595.0,94594.0,0.2114404]
[1746567497886,0.2113983,94615.0,94598.0,0.21147]
[1746567498192,0.0327,94615.0,94614.0,0.2113935]
[1746567498596,0.0327,94615.0,94614.0,0.37099934]
[1746567499189,0.0645,94615.0,94614.0,0.40159934]
[1746567500088,0.0645,94615.0,94614.0,0.41233421]
[1746567502596,0.0655,94615.0,94614.0,0.41233421]
[1746567502801,0.0655,94615.0,94614.0,0.42039951]
[1746567503388,0.0655,94615.0,94614.0,0.63186951]
[1746567504089,0.0655,94615.0,94614.0,0.66516951]
[1746567512609,0.001,94615.0,94614.0,1.02516951]
[1746567512810,0.001,94615.0,94614.0,0.79516951]
[1746567514215,0.0015,94625.0,94614.0,0.79516951]
[1746567514216,0.0015,94625.0,94624.0,0.2113734]
[1746567514408,0.0015,94625.0,94624.0,0.7836434]
[1746567514611,0.0015,94625.0,94624.0,1.00486579]
[1746567515820,0.0045,94625.0,94624.0,1.15486579]
[1746567516320,0.0528262,94655.0,94640.0,0.2113377]
[1746567516520,0.2113327,94643.0,94640.0,0.2113377]
[1746567516725,0.2113327,94643.0,94640.0,0.37084003]
[1746567517022,0.0624,94642.0,94640.0,0.37084003]
[1746567517315,0.0624,94642.0,94641.0,0.2113354]
[1746567517519,0.03,94642.0,94641.0,0.2425354]
[1746567517719,0.0609,94642.0,94641.0,0.36929796]
[1746567518322,0.2722332,94642.0,94641.0,0.37977058]
[1746567518618,0.0609,94642.0,94641.0,0.37977058]
[1746567519119,0.0629,94642.0,94641.0,0.37977058]
[1746567524928,0.0609,94642.0,94641.0,0.37977058]
[1746567527532,0.03,94642.0,94641.0,0.74057058]
[1746567528123,0.03,94642.0,94641.0,0.80477058]
[1746567528324,0.2113174,94650.0,94649.0,0.2113155]
[1746567528725,0.2113174,94650.0,94649.0,0.37034216]
[1746567529619,0.2439174,94650.0,94649.0,0.37034216]
[1746567530527,0.2459174,94650.0,94649.0,0.37034216]
[1746567530732,0.0346,94650.0,94649.0,0.58181216]
[1746567531139,0.0346,94650.0,94649.0,0.64751216]
[1746567531834,0.002,94650.0,94649.0,0.64751216]
[1746567536726,0.002,94650.0,94649.0,1.00831216]
[1746567537127,0.002,94650.0,94649.0,1.16831216]
[1746567537934,0.001,94656.0,94655.0,0.2113042]
[1746567538135,0.001,94656.0,94655.0,0.4227742]
[1746567538433,0.001,94656.0,94655.0,0.58178509]
[1746567538838,0.001,94656.0,94655.0,0.64348509]
[1746567539232,0.004,94656.0,94655.0,0.65348509]
[1746567540728,0.001,94656.0,94655.0,0.65348509]
[1746567540928,0.001,94656.0,94655.0,0.65648509]
[1746567541439,0.001,94656.0,94655.0,0.65848509]
[1746567543537,0.001,94656.0,94655.0,0.64848509]
[1746567544334,0.001,94656.0,94655.0,1.00928509]
[1746567548339,0.001,94656.0,94655.0,1.01928509]
[1746567550138,0.0015,94660.0,94655.0,0.80798089]
[1746567550342,0.0643,94682.0,94681.0,0.2112461]
[1746567550637,0.0643,94682.0,94681.0,0.2900461]
[1746567550839,0.0643,94682.0,94681.0,0.6508461]
[1746567551031,0.0643,94682.0,94681.0,0.8191236]
[1746567551540,0.0643,94682.0,94681.0,0.8211236]
[1746567553529,0.0643,94682.0,94681.0,0.73947435]
[1746567553731,0.0643,94682.0,94681.0,0.45747435]
[1746567561944,0.0643,94682.0,94681.0,0.37867435]
[1746567562145,0.0643,94682.0,94681.0,0.45767435]
[1746567566537,0.0643,94682.0,94681.0,0.52237435]
[1746567567248,0.0643,94682.0,94681.0,0.45767435]
[1746567567936,0.2755439,94682.0,94681.0,0.45767435]
[1746567568140,0.0643,94682.0,94681.0,0.45767435]
[1746567569639,0.0643,94682.0,94681.0,0.66914435]
[1746567570547,0.0643,94682.0,94681.0,0.73514435]
[1746567574041,0.0643,94682.0,94681.0,2.08514435]
[1746567574850,0.0643,94682.0,94681.0,2.44594435]
[1746567576764,0.001,94686.0,94685.0,0.2112372]
[1746567577152,0.001,94686.0,94685.0,0.36956018]
[1746567578150,0.001,94686.0,94685.0,0.40196018]
[1746567578655,0.0322,94686.0,94685.0,0.40196018]
[1746567578954,0.0322,94686.0,94685.0,0.43266018]
[1746567579451,0.0332,94686.0,94685.0,0.43266018]
[1746567584258,0.0332,94686.0,94685.0,0.51166018]
[1746567586560,0.002,94686.0,94685.0,0.72313018]
[1746567595159,0.002,94686.0,94685.0,0.72265018]
[1746567600171,0.002,94686.0,94685.0,0.64413018]
[1746567600367,0.002,94686.0,94685.0,0.69195018]
[1746567600668,0.002,94686.0,94685.0,0.70195018]
[1746567601670,0.002,94686.0,94685.0,0.73305018]
[1746567602674,0.002,94686.0,94685.0,0.88305018]
[1746567603872,0.002,94686.0,94685.0,0.73305018]
[1746567604270,0.002,94686.0,94685.0,0.72305018]
[1746567604972,0.002,94686.0,94685.0,2.07305018]
[1746567605177,0.002,94686.0,94685.0,2.21305018]
[1746567611466,0.002,94686.0,94685.0,2.37467138]
[1746567615586,0.002,94686.0,94685.0,2.21305018]
[1746567615890,0.002,94686.0,94685.0,2.23305018]
[1746567625097,0.002,94686.0,94685.0,2.59385018]
[1746567631903,0.002,94686.0,94685.0,2.51533018]
[1746567632093,0.002,94686.0,94685.0,2.59401018]
[1746567632901,0.002,94686.0,94685.0,2.23321018]
[1746567633101,0.002,94686.0,94685.0,2.59401018]
[1746567638202,0.002,94686.0,94685.0,2.23321018]
[1746567638405,0.002,94686.0,94685.0,2.59401018]
[1746567639203,0.002,94686.0,94685.0,2.23321018]
[1746567639400,0.002,94686.0,94685.0,2.59401018]
[1746567643106,0.002,94686.0,94685.0,2.23321018]
[1746567643309,0.002,94686.0,94685.0,2.59401018]
[1746567648510,0.002,94686.0,94685.0,2.23321018]
[1746567648702,0.002,94686.0,94685.0,2.59401018]
[1746567654510,0.002,94686.0,94685.0,2.23321018]
[1746567654711,0.002,94686.0,94685.0,2.59401018]
[1746567655211,0.002,94686.0,94685.0,2.23321018]
[1746567655511,0.002,94686.0,94685.0,2.59401018]
[1746567655711,0.002,94686.0,94685.0,2.80927546]
[1746567658203,0.002,94686.0,94685.0,2.44847546]
[1746567658403,0.002,94686.0,94685.0,2.80927546]
[1746567661704,0.002,94686.0,94685.0,2.78927546]
[1746567662016,0.002,94686.0,94685.0,2.80927546]
[1746567662307,0.002,94686.0,94685.0,2.66927546]
[1746567663012,0.002,94686.0,94685.0,2.30847546]
[1746567663209,0.002,94686.0,94685.0,2.66927546]
[1746567665017,0.002,94686.0,94685.0,2.30847546]
[1746567665321,0.002,94686.0,94685.0,2.66927546]
[1746567670120,0.002,94686.0,94685.0,2.64927546]
[1746567672020,0.002,94686.0,94685.0,2.43401018]
[1746567674423,0.002,94686.0,94685.0,2.45401018]
[1746567675925,0.002,94686.0,94685.0,2.66927546]
[1746567679530,0.002,94686.0,94685.0,2.45401018]
[1746567681831,0.002,94686.0,94685.0,2.24254018]
[1746567682031,0.002,94686.0,94685.0,2.43401018]
[1746567682328,0.002,94686.0,94685.0,2.35533018]
[1746567682626,0.002,94686.0,94685.0,2.23202018]
[1746567682822,0.002,94686.0,94685.0,2.44349018]
[1746567695954,0.002,94686.0,94685.0,2.43349018]
[1746567696251,0.002,94686.0,94685.0,2.46349018]
[1746567696755,0.002,94686.0,94685.0,2.43349018]
[1746567697053,0.002,94686.0,94685.0,2.46349018]
[1746567697552,0.002,94686.0,94685.0,2.43349018]
[1746567697746,0.002,94686.0,94685.0,2.46349018]
[1746567698555,0.002,94686.0,94685.0,2.43349018]
[1746567699053,0.002,94686.0,94685.0,2.44349018]
[1746567701055,0.002,94686.0,94685.0,2.43349018]
[1746567714265,0.002,94686.0,94685.0,2.45349018]
[1746567715359,0.002,94686.0,94685.0,2.45345018]
[1746567722270,0.002,94686.0,94685.0,2.46899009]
[1746567723271,0.002,94686.0,94685.0,2.68425537]
[1746567726580,0.002,94686.0,94685.0,2.47278537]
[1746567726768,0.002,94686.0,94685.0,2.68425537]
[1746567727171,0.002,94686.0,94685.0,2.46899009]
[1746567728073,0.002,94686.0,94685.0,2.469384]
[1746567729873,0.002,94686.0,94685.0,2.46939074]
[1746567730869,0.0306,94688.0,94687.0,0.2112327]
[1746567731069,0.0459,94690.0,94689.0,0.2112283]
[1746567731272,0.1,94700.0,94694.0,0.2112171]
[1746567731574,0.1,94700.0,94694.0,0.44715766]
[1746567731764,0.04588,94699.0,94694.0,0.58867142]
[1746567732165,0.04588,94699.0,94694.0,0.61927142]
[1746567732361,0.0325,94698.0,94694.0,0.39927142]
[1746567732674,0.0325,94698.0,94694.0,0.57516947]
[1746567733362,0.0325,94698.0,94694.0,0.41516947]
[1746567733767,0.0325,94698.0,94694.0,0.54927142]
[1746567734283,0.0325,94698.0,94694.0,0.45937142]
[1746567734575,0.0035,94695.0,94694.0,0.60937142]
[1746567735177,0.0035,94695.0,94694.0,0.68749142]
[1746567735478,0.0035,94695.0,94694.0,0.53749142]
[1746567735679,0.0035,94695.0,94694.0,0.69749142]
[1746567738369,0.0035,94695.0,94694.0,0.66749142]
[1746567738668,0.0035,94695.0,94694.0,0.70749142]
[1746567739172,0.0035,94695.0,94694.0,0.50749142]
[1746567743382,0.0035,94695.0,94694.0,0.52749142]
[1746567743784,0.0035,94695.0,94694.0,1.87749142]
[1746567745688,0.0035,94695.0,94694.0,1.85749142]
[1746567746184,0.0035,94695.0,94694.0,1.87749142]
[1746567746486,0.0336,94695.0,94694.0,1.87749142]
[1746567747278,0.0336,94695.0,94694.0,1.85749142]
[1746567747685,0.0336,94695.0,94694.0,2.06896142]
[1746567754995,0.0035,94695.0,94694.0,2.06896142]
[1746567764705,0.0035,94695.0,94694.0,1.85749142]
[1746567764904,0.0035,94695.0,94694.0,2.42976142]
[1746567769504,0.0035,94695.0,94694.0,2.21829142]
[1746567769704,0.0035,94695.0,94694.0,2.42976142]
[1746567772415,0.0035,94695.0,94694.0,2.35164142]
[1746567772602,0.0035,94695.0,94694.0,2.42980142]
[1746567775510,0.0035,94695.0,94694.0,2.35164142]
[1746567775811,0.0035,94695.0,94694.0,2.42980142]
[1746567776218,0.0035,94695.0,94694.0,2.59139559]
[1746567779319,0.0035,94695.0,94694.0,2.61139559]
[1746567779619,0.0035,94695.0,94694.0,2.59139559]
[1746567780321,0.0035,94695.0,94694.0,2.42980142]
[1746567783311,0.0035,94695.0,94694.0,2.43980142]
[1746567783812,0.0035,94695.0,94694.0,2.42980142]
[1746567784012,0.0035,94695.0,94694.0,2.43980142]
[1746567784218,0.0035,94695.0,94694.0,2.42980142]
[1746567785715,0.0035,94695.0,94694.0,2.44980142]
[1746567786021,0.0035,94695.0,94694.0,2.43980142]
[1746567786320,0.0035,94695.0,94694.0,2.44980142]
[1746567786509,0.0035,94695.0,94694.0,2.42980142]
[1746567787123,0.0035,94695.0,94694.0,2.47980142]
[1746567787721,0.0035,94695.0,94694.0,2.42980142]
[1746567792725,0.0035,94695.0,94694.0,2.42972142]
[1746567793127,0.0035,94695.0,94694.0,2.59132116]
[1746567797831,0.0035,94695.0,94694.0,2.42972142]
[1746567801521,0.0035,94695.0,94694.0,2.44972142]
[1746567803833,0.0035,94695.0,94694.0,2.42972142]
[1746567805023,0.0347,94695.0,94694.0,2.42972142]
[1746567806433,0.0347,94695.0,94694.0,2.45972142]
[1746567809640,0.0035,94695.0,94694.0,2.45972142]
[1746567810729,0.0035,94695.0,94694.0,2.42972142]
[1746567810932,0.0035,94695.0,94694.0,2.44972142]
[1746567811339,0.0035,94695.0,94694.0,2.42972142]
[1746567816041,0.0035,94695.0,94694.0,2.67972142]
[1746567819538,0.0035,94695.0,94694.0,2.42972142]
[1746567819740,0.0035,94695.0,94694.0,2.46972142]
[1746567820348,0.0035,94695.0,94694.0,2.42972142]
[1746567820835,0.0035,94695.0,94694.0,2.44972142]
[1746567824741,0.0035,94695.0,94694.0,2.08892142]
[1746567824938,0.0035,94695.0,94694.0,2.44972142]
[1746567826348,0.0035,94695.0,94694.0,2.59131437]
[1746567827646,0.0035,94695.0,94694.0,2.61131437]
[1746567827837,0.0035,94695.0,94694.0,2.59131437]
[1746567829247,0.0035,94695.0,94694.0,2.23051437]
[1746567829449,0.0035,94695.0,94694.0,2.59131437]
[1746567829949,0.0035,94695.0,94694.0,2.42972142]
[1746567830645,0.0035,94695.0,94694.0,2.21825142]
[1746567830839,0.0356,94695.0,94694.0,2.18815142]
[1746567831040,0.068,94695.0,94694.0,2.18815142]
[1746567832341,0.068,94695.0,94694.0,1.82735142]
[1746567832648,0.068,94695.0,94694.0,2.18815142]
[1746567833347,0.068,94695.0,94694.0,2.25175142]
[1746567833544,0.0035,94695.0,94694.0,2.30175142]
[1746567834540,0.0035,94695.0,94694.0,2.22367142]
[1746567834741,0.0035,94695.0,94694.0,2.30175142]
[1746567836252,0.0035,94695.0,94694.0,2.25175142]
[1746567836754,0.0035,94695.0,94694.0,2.48322142]
[1746567837352,0.0035,94695.0,94694.0,2.64482145]
[1746567840153,0.0035,94695.0,94694.0,2.77482145]
[1746567840546,0.0035,94695.0,94694.0,2.61322142]
[1746567840746,0.0035,94695.0,94694.0,2.48322142]
[1746567841345,0.0035,94695.0,94694.0,2.46322142]
[1746567841540,0.0035,94695.0,94694.0,2.68322142]
[1746567843053,0.0015,94695.0,94694.0,2.68322142]
[1746567843741,0.0015,94695.0,94694.0,2.94322142]
[1746567854560,0.0015,94695.0,94694.0,2.69322142]
[1746567856259,0.0015,94695.0,94694.0,2.46322142]
[1746567856450,0.0015,94695.0,94694.0,2.50322142]
[1746567859959,0.0015,94695.0,94694.0,2.14242142]
[1746567860164,0.0015,94695.0,94694.0,2.50322142]
[1746567862553,0.0015,94695.0,94694.0,2.46322142]
[1746567862762,0.0015,94695.0,94694.0,2.49322142]
[1746567863057,0.0015,94695.0,94694.0,2.24965142]
[1746567866059,0.0015,94695.0,94694.0,2.62112142]
[1746567866266,0.04588,94699.0,94698.0,0.2112082]
[1746567866562,0.1,94700.0,94699.0,0.211206]
[1746567866764,0.1,94700.0,94699.0,0.514076]
[1746567866959,0.1,94700.0,94699.0,0.86599649]
[1746567868260,0.1,94700.0,94699.0,0.70599649]
[1746567868563,0.101,94700.0,94699.0,0.84599649]
[1746567868762,0.101,94700.0,94699.0,1.20679649]
[1746567874166,0.101,94700.0,94699.0,1.36836539]
[1746567877568,0.101,94700.0,94699.0,1.20679649]
[1746567878571,0.101,94700.0,94699.0,0.96392649]
[1746567879071,0.101,94700.0,94699.0,0.84268649]
[1746567879274,0.1332,94700.0,94699.0,0.84268649]
[1746567880977,0.1332,94700.0,94699.0,0.48188649]
[1746567882763,0.1332,94700.0,94699.0,1.83188649]
[1746567898583,0.1649,94700.0,94699.0,1.83188649]
[1746567899782,0.1649,94700.0,94699.0,1.86338649]
[1746567902880,0.101,94700.0,94699.0,2.89565649]
[1746567903084,0.04583,94704.0,94703.0,0.2111971]
[1746567903291,0.3618,94716.0,94709.0,0.2111837]
[1746567903485,6e-08,94710.0,94709.0,0.8910137]
[1746567903685,6e-08,94710.0,94709.0,1.0808972]
[1746567903892,6e-08,94710.0,94709.0,1.1109972]
[1746567904590,6e-08,94710.0,94709.0,0.8809972]
[1746567905299,6e-08,94710.0,94709.0,0.8026372]
[1746567906197,0.3618,94716.0,94715.0,0.2111703]
[1746567906389,0.3618,94716.0,94715.0,0.2892503]
[1746567906791,0.3618,94716.0,94715.0,0.44842839]
[1746567906996,0.3618,94716.0,94715.0,0.50932839]
[1746567908100,0.3628,94716.0,94715.0,0.50932839]
[1746567908799,0.3628,94716.0,94715.0,0.51979725]
[1746567911999,0.92954811,94716.0,94715.0,0.15917809]
[1746567912198,0.2111904,94706.0,94705.0,0.16156728]
[1746567912396,0.2112038,94700.0,94699.0,1.51561576]
[1746567912592,0.5720038,94700.0,94699.0,1.51561576]
[1746567912897,0.2112216,94692.0,94691.0,0.26971071]
[1746567913207,0.6507416,94692.0,94691.0,0.06521071]
[1746567913498,1.0845496,94692.0,94691.0,0.06521071]
[1746567914202,1.2625496,94692.0,94691.0,0.06521071]
[1746567914402,1.1572616,94692.0,94691.0,0.06521071]
[1746567914802,0.2112283,94689.0,94688.0,0.2112305]
[1746567915004,0.2102283,94689.0,94688.0,0.2112305]
[1746567916201,0.3882283,94689.0,94688.0,0.2112305]
[1746567916602,0.3892283,94689.0,94688.0,0.2112305]
[1746567916803,0.2112439,94682.0,94681.0,0.00791836]
[1746567917004,0.6513639,94682.0,94681.0,0.0636]
[1746567918807,0.5720439,94682.0,94681.0,0.0636]
[1746567919002,0.4412,94682.0,94681.0,1.0745935]
[1746567919201,0.001,94682.0,94681.0,2.16327348]
[1746567919508,0.6574514,94688.0,94687.0,0.8450827]
[1746567919706,0.6574514,94688.0,94687.0,2.15456268]
[1746567920006,0.6574514,94688.0,94687.0,2.56331631]
[1746567920406,0.6574514,94688.0,94687.0,2.62891631]
[1746567922305,0.6574514,94688.0,94687.0,2.37891631]
[1746567923008,0.6574514,94688.0,94687.0,2.38291631]
[1746567924113,0.2111931,94705.0,94704.0,0.2111948]
[1746567924708,0.2111931,94705.0,94704.0,0.37024417]
[1746567924910,0.2111931,94705.0,94704.0,0.43254417]
[1746567925311,0.2111931,94705.0,94704.0,0.46524417]
[1746567925812,0.3608,94706.0,94705.0,0.2111926]
[1746567926015,0.3608,94706.0,94705.0,0.2734926]
[1746567926207,0.3608,94706.0,94705.0,0.43288747]
[1746567927513,0.3608,94706.0,94705.0,0.44326323]
[1746567928010,0.3608,94706.0,94705.0,0.43288747]
[1746567929110,0.3608,94706.0,94705.0,0.43388747]
[1746567929314,0.3608,94706.0,94705.0,1.44522745]
[1746567929808,0.3608,94706.0,94705.0,1.45599063]
[1746567932312,0.3608,94706.0,94705.0,1.66718063]
[1746567935215,0.001,94716.0,94715.0,0.2111703]
[1746567935407,0.3618,94716.0,94715.0,0.2111703]
[1746567935608,0.3618,94716.0,94715.0,0.36957803]
[1746567936010,0.3618,94716.0,94715.0,0.43267803]
[1746567937514,0.3628,94716.0,94715.0,0.43267803]
[1746567940011,0.3628,94716.0,94715.0,1.02135801]
[1746567940211,0.3628,94716.0,94715.0,1.65520801]
[1746567947712,0.3628,94716.0,94715.0,1.67520801]
[1746567949124,0.3628,94716.0,94715.0,1.65520801]
[1746567949422,0.002,94716.0,94715.0,1.65520801]
[1746567949820,0.002,94716.0,94715.0,1.68520801]
[1746567950016,0.002,94716.0,94715.0,1.65520801]
[1746567956025,0.002,94716.0,94715.0,1.68520801]
[1746567956629,0.002,94716.0,94715.0,1.65520801]
[1746567957326,0.002,94716.0,94715.0,1.68520801]
[1746567958021,0.3608,94728.0,94727.0,0.2111436]
[1746567958222,0.3608,94728.0,94727.0,0.2904636]
[1746567958528,0.3608,94728.0,94727.0,1.03658136]
[1746567959018,0.3608,94728.0,94727.0,1.10028136]
[1746567959927,0.3618,94728.0,94727.0,1.10028136]
[1746567966730,0.5729413,94728.0,94727.0,1.10028136]
[1746567969629,0.5729413,94728.0,94727.0,0.51160138]
[1746567970731,0.5729413,94728.0,94727.0,0.48010138]
[1746567979735,0.2121413,94728.0,94727.0,0.48010138]
[1746567979938,0.5729413,94728.0,94727.0,0.48010138]
[1746567980735,0.2121413,94728.0,94727.0,0.48010138]
[1746567981036,0.5729413,94728.0,94727.0,0.48010138]
[1746567982535,0.2121413,94728.0,94727.0,0.48010138]
[1746567982835,0.5729413,94728.0,94727.0,0.48010138]
[1746567983044,0.5729413,94728.0,94727.0,0.40078138]
[1746567983428,0.5729413,94728.0,94727.0,0.43388138]
[1746567983936,0.2121413,94728.0,94727.0,0.43388138]
[1746567984139,0.5729413,94728.0,94727.0,0.43388138]
[1746567988836,0.5729413,94728.0,94727.0,0.46698138]
[1746567989036,0.57312041,94728.0,94727.0,0.46698138]
[1746567989940,0.57312041,94728.0,94727.0,1.68951136]
[1746567995047,0.36197911,94728.0,94727.0,1.68951136]
[1746567997143,0.53997911,94728.0,94727.0,1.68951136]
[1746568002558,0.17917911,94728.0,94727.0,1.68951136]
[1746568010057,0.17917911,94728.0,94727.0,2.07951136]
[1746568010254,0.10738238,94736.0,94735.0,0.2111257]
[1746568010560,0.10738238,94736.0,94735.0,1.48365568]
[1746568010749,0.10738238,94736.0,94735.0,1.64253225]
[1746568011150,0.10738238,94736.0,94735.0,1.70553225]
[1746568011861,0.10738238,94736.0,94735.0,1.65553225]
[1746568012664,0.10738238,94744.0,94743.0,0.2111079]
[1746568012865,0.10738238,94744.0,94743.0,0.29726592]
[1746568013162,0.28538238,94744.0,94743.0,1.0440487]
[1746568013349,0.28538238,94744.0,94743.0,1.1096487]
[1746568014459,0.28538238,94744.0,94743.0,1.12023045]
[1746568014658,0.28538238,94744.0,94743.0,1.13594648]
[1746568016463,0.178,94744.0,94743.0,1.13594648]
[1746568018656,0.178,94744.0,94743.0,1.13584365]
[1746568018966,0.178,94744.0,94743.0,1.12023045]
[1746568019662,0.178,94744.0,94743.0,1.13584403]
[1746568020564,0.178,94744.0,94743.0,1.12023045]
[1746568020765,0.178,94744.0,94743.0,1.13587764]
[1746568023871,0.178,94744.0,94743.0,1.13585496]
[1746568025767,0.178,94744.0,94743.0,1.13576975]
[1746568027569,0.178,94744.0,94743.0,0.54703496]
[1746568027770,0.178,94744.0,94743.0,1.13571494]
[1746568029072,0.178,94744.0,94743.0,1.05759494]
[1746568029271,0.178,94744.0,94743.0,1.13571494]
[1746568031174,0.178,94744.0,94743.0,1.1357673]
[1746568034775,0.178,94744.0,94743.0,0.54708732]
[1746568034967,0.178,94744.0,94743.0,1.1357673]
[1746568035874,0.178,94744.0,94743.0,1.13573476]
[1746568036573,0.178,94744.0,94743.0,1.13573689]
[1746568038569,0.178,94744.0,94743.0,1.13573262]
[1746568041475,0.178,94744.0,94743.0,1.12023045]
[1746568042274,0.178,94744.0,94743.0,1.13578485]
[1746568042662,0.178,94744.0,94743.0,1.12023045]
[1746568042871,0.178,94744.0,94743.0,1.13576011]
[1746568045483,0.178,94744.0,94743.0,0.54708013]
[1746568045673,0.178,94744.0,94743.0,1.13576011]
[1746568046184,0.178,94744.0,94743.0,1.13582557]
[1746568047781,0.178,94744.0,94743.0,1.55848557]
[1746568050374,0.178,94744.0,94743.0,1.76967557]
[1746568051584,0.178,94744.0,94743.0,1.75408045]
[1746568051786,0.178,94744.0,94743.0,1.77022867]
[1746568053989,0.178,94744.0,94743.0,1.18154869]
[1746568055276,0.178,94744.0,94743.0,1.18132515]
[1746568057090,0.178,94744.0,94743.0,1.18092264]
[1746568059087,0.178,94744.0,94743.0,1.18092268]
[1746568062086,0.178,94744.0,94743.0,1.76960266]
[1746568062585,0.178,94744.0,94743.0,1.7695775]
[1746568062889,0.178,94744.0,94743.0,1.75408045]
[1746568063888,0.178,94744.0,94743.0,1.76960297]
[1746568066592,0.178,94744.0,94743.0,1.18092299]
[1746568066889,0.178,94744.0,94743.0,1.76960297]
[1746568068194,0.178,94744.0,94743.0,1.7695963]
[1746568076600,0.178,94744.0,94743.0,1.18091632]